[Event "*** Titled Tuesday Blitz"]
[Site "Chess.com"]
[Date "2020.11.10"]
[Round "3"]
[White "GameOverBro"]
[Black "misterlamine"]
[Result "0-1"]
[WhiteElo "2504"]
[BlackElo "2295"]
[TimeControl "180+1"]
[EndTime "10:30:59 PST"]
[Termination "misterlamine won on time"]

1. e4 {[%clk 0:03:00.9]} 1... c5 {[%clk 0:02:59.6]} 2. Ne2 {[%clk 0:03:00.9]}
2... Nc6 {[%clk 0:02:58.8]} 3. Nbc3 {[%clk 0:03:01.4]} 3... e6 {[%clk
0:02:57.5]} 4. g3 {[%clk 0:03:01.5]} 4... g6 {[%clk 0:02:56.8]} 5. d4 {[%clk
0:03:00.9]} 5... cxd4 {[%clk 0:02:53.3]} 6. Nxd4 {[%clk 0:03:01.8]} 6... Bg7
{[%clk 0:02:53.5]} 7. Ndb5 {[%clk 0:03:01.6]} 7... Nge7 {[%clk 0:02:51.1]} 8.
Nd6+ {[%clk 0:03:01.3]} 8... Kf8 {[%clk 0:02:51.6]} 9. Bg2 {[%clk 0:02:57.7]}
9... a6 {[%clk 0:02:50.8]} 10. a4 {[%clk 0:02:53.9]} 10... Qa5 {[%clk
0:02:46.5]} 11. O-O {[%clk 0:02:41.3]} 11... h5 {[%clk 0:02:46.5]} 12. h3 {[%clk
0:02:33.3]} 12... h4 {[%clk 0:02:40.5]} 13. g4 {[%clk 0:02:32.3]} 13... Qb6
{[%clk 0:02:33.4]} 14. Kh1 {[%clk 0:01:39.2]} 14... Nd4 {[%clk 0:02:18.3]} 15.
Nc4 {[%clk 0:01:28.9]} 15... Qc7 {[%clk 0:02:17.3]} 16. Qd3 {[%clk 0:01:17]}
16... Nxc2 {[%clk 0:02:07.5]} 17. Qxc2 {[%clk 0:01:05]} 17... Qxc4 {[%clk
0:02:06.9]} 18. f4 {[%clk 0:01:00.7]} 18... d5 {[%clk 0:02:05.7]} 19. exd5
{[%clk 0:00:57.4]} 19... Nxd5 {[%clk 0:01:59]} 20. Bd2 {[%clk 0:00:51.5]} 20...
Nb4 {[%clk 0:01:45.1]} 21. Qd1 {[%clk 0:00:49.4]} 21... Bd7 {[%clk 0:01:44.6]}
22. Rc1 {[%clk 0:00:48.8]} 22... Bc6 {[%clk 0:01:41.4]} 23. Ne4 {[%clk
0:00:47.8]} 23... Qd4 {[%clk 0:01:20.6]} 24. Bc3 {[%clk 0:00:47.3]} 24... Qxd1
{[%clk 0:01:20.3]} 25. Bxb4+ {[%clk 0:00:47.5]} 25... Kg8 {[%clk 0:01:16.2]} 26.
Rcxd1 {[%clk 0:00:47.2]} 26... Bxb2 {[%clk 0:01:16.7]} 27. g5 {[%clk 0:00:42.8]}
27... Bxa4 {[%clk 0:01:15.9]} 28. Nf6+ {[%clk 0:00:40.6]} 28... Bxf6 {[%clk
0:01:15]} 29. gxf6 {[%clk 0:00:41.5]} 29... Bxd1 {[%clk 0:01:14.8]} 30. Rxd1
{[%clk 0:00:39.6]} 30... Rh5 {[%clk 0:01:11.7]} 31. Be7 {[%clk 0:00:17.8]} 31...
Rb5 {[%clk 0:01:09.9]} 32. Rd7 {[%clk 0:00:16.9]} 32... a5 {[%clk 0:01:09.1]}
33. Bxb7 {[%clk 0:00:16.1]} 33... Rb8 {[%clk 0:01:07.3]} 34. Bc6 {[%clk
0:00:16]} 34... Rb2 {[%clk 0:01:06.2]} 35. Bd6 {[%clk 0:00:11.6]} 35... Rc8
{[%clk 0:01:03.1]} 36. Bc7 {[%clk 0:00:02.1]} 36... Rc2 {[%clk 0:01:01.3]} 0-1

[Event "*** Titled Tuesday Blitz"]
[Site "Chess.com"]
[Date "2020.11.10"]
[Round "3"]
[White "Mr_Sinigami"]
[Black "NovakCabarkapa"]
[Result "1-0"]
[WhiteElo "2534"]
[BlackElo "2721"]
[TimeControl "180+1"]
[EndTime "10:31:00 PST"]
[Termination "Mr_Sinigami won by resignation"]

1. d4 {[%clk 0:03:00.9]} 1... Nf6 {[%clk 0:02:57.9]} 2. Nf3 {[%clk 0:03:00.9]}
2... g6 {[%clk 0:02:57.6]} 3. Bf4 {[%clk 0:03:01]} 3... Bg7 {[%clk 0:02:56.2]}
4. e3 {[%clk 0:03:01.2]} 4... d6 {[%clk 0:02:55.8]} 5. h3 {[%clk 0:03:01.4]}
5... O-O {[%clk 0:02:55.7]} 6. Be2 {[%clk 0:03:01]} 6... Nfd7 {[%clk 0:02:56]}
7. c4 {[%clk 0:02:55.3]} 7... e5 {[%clk 0:02:55.8]} 8. Bg3 {[%clk 0:02:54.7]}
8... Nc6 {[%clk 0:02:56]} 9. Nc3 {[%clk 0:02:52.9]} 9... f5 {[%clk 0:02:53.9]}
10. Bh4 {[%clk 0:02:52.3]} 10... Nf6 {[%clk 0:02:43.1]} 11. dxe5 {[%clk
0:02:46.9]} 11... Nxe5 {[%clk 0:01:57.9]} 12. Nxe5 {[%clk 0:02:44.8]} 12... dxe5
{[%clk 0:01:58.8]} 13. Qxd8 {[%clk 0:02:44.5]} 13... Rxd8 {[%clk 0:01:59.7]} 14.
Nd5 {[%clk 0:02:43.7]} 14... Rd6 {[%clk 0:01:40.9]} 15. Nxc7 {[%clk 0:02:32.1]}
15... Rb8 {[%clk 0:01:39.9]} 16. Rd1 {[%clk 0:01:59.8]} 16... Rxd1+ {[%clk
0:01:30.6]} 17. Bxd1 {[%clk 0:01:58.2]} 17... Ne4 {[%clk 0:01:29.8]} 18. f3
{[%clk 0:01:49.2]} 18... Nc5 {[%clk 0:01:24.9]} 19. Bc2 {[%clk 0:01:30]} 19...
e4 {[%clk 0:01:20]} 20. fxe4 {[%clk 0:01:23]} 20... Bxb2 {[%clk 0:01:09.9]} 21.
exf5 {[%clk 0:01:20.2]} 21... Bxf5 {[%clk 0:00:31.7]} 22. Bxf5 {[%clk
0:01:18.9]} 22... gxf5 {[%clk 0:00:32.6]} 23. Rf1 {[%clk 0:01:13]} 23... Rc8
{[%clk 0:00:17]} 24. Nd5 {[%clk 0:01:12]} 24... Re8 {[%clk 0:00:17.3]} 25. Rxf5
{[%clk 0:01:07.5]} 25... b6 {[%clk 0:00:16.6]} 26. Bf6 {[%clk 0:01:03.6]} 26...
Re6 {[%clk 0:00:08.8]} 27. Ke2 {[%clk 0:00:57.7]} 27... Bxf6 {[%clk 0:00:08.2]}
28. Rxf6 {[%clk 0:00:56.9]} 28... Re4 {[%clk 0:00:05.4]} 29. Rf4 {[%clk
0:00:55.5]} 29... Re6 {[%clk 0:00:04.7]} 30. g4 {[%clk 0:00:50]} 30... Ne4
{[%clk 0:00:02.6]} 31. Rxe4 {[%clk 0:00:49.8]} 1-0

[Event "*** Titled Tuesday Blitz"]
[Site "Chess.com"]
[Date "2020.11.10"]
[Round "3"]
[White "MrChampion_Coach"]
[Black "tdf98pantani"]
[Result "1-0"]
[WhiteElo "2509"]
[BlackElo "2728"]
[TimeControl "180+1"]
[EndTime "10:31:02 PST"]
[Termination "MrChampion_Coach won by checkmate"]

1. d4 {[%clk 0:03:00.9]} 1... Nf6 {[%clk 0:02:59.2]} 2. c4 {[%clk 0:03:00.3]}
2... g6 {[%clk 0:02:59.6]} 3. Nc3 {[%clk 0:02:59.7]} 3... Bg7 {[%clk 0:03:00]}
4. e4 {[%clk 0:02:59.9]} 4... d6 {[%clk 0:02:59.8]} 5. h3 {[%clk 0:02:59.7]}
5... O-O {[%clk 0:02:59.5]} 6. Be3 {[%clk 0:02:59.6]} 6... e5 {[%clk 0:02:59.7]}
7. d5 {[%clk 0:02:59.5]} 7... Na6 {[%clk 0:02:57.5]} 8. Nf3 {[%clk 0:02:59.4]}
8... Nc5 {[%clk 0:02:57.2]} 9. Nd2 {[%clk 0:03:00]} 9... a5 {[%clk 0:02:56.6]}
10. Be2 {[%clk 0:02:57.7]} 10... c6 {[%clk 0:02:54.1]} 11. g4 {[%clk 0:02:47.3]}
11... Bd7 {[%clk 0:02:45.2]} 12. f3 {[%clk 0:02:14.5]} 12... a4 {[%clk
0:02:42.4]} 13. Kf1 {[%clk 0:02:08.7]} 13... Ne8 {[%clk 0:02:33.1]} 14. Kg2
{[%clk 0:02:07.2]} 14... f5 {[%clk 0:02:29.4]} 15. Qc2 {[%clk 0:02:03.7]} 15...
cxd5 {[%clk 0:02:20.6]} 16. cxd5 {[%clk 0:01:55.7]} 16... Rc8 {[%clk 0:02:20.7]}
17. Rac1 {[%clk 0:01:47.5]} 17... Bf6 {[%clk 0:02:15.3]} 18. Bh6 {[%clk
0:01:09.2]} 18... Rf7 {[%clk 0:02:13.1]} 19. gxf5 {[%clk 0:01:03.4]} 19... gxf5
{[%clk 0:02:07.9]} 20. Kh2 {[%clk 0:01:01.8]} 20... Kh8 {[%clk 0:02:06.3]} 21.
Rhg1 {[%clk 0:01:01.3]} 21... b5 {[%clk 0:01:59.7]} 22. Bxb5 {[%clk 0:00:53.8]}
22... Bxb5 {[%clk 0:01:42.9]} 23. Nxb5 {[%clk 0:00:54.5]} 23... Bg7 {[%clk
0:01:41.1]} 24. Be3 {[%clk 0:00:47.8]} 24... Qh4 {[%clk 0:01:37.6]} 25. exf5
{[%clk 0:00:36.9]} 25... Bh6 {[%clk 0:01:31.7]} 26. Bxh6 {[%clk 0:00:35.3]}
26... Qxh6 {[%clk 0:01:31.7]} 27. Ne4 {[%clk 0:00:35.5]} 27... Rxf5 {[%clk
0:01:25.4]} 28. Qg2 {[%clk 0:00:29.3]} 28... Rf8 {[%clk 0:00:53.4]} 29. Nbxd6
{[%clk 0:00:24.6]} 29... Nxe4 {[%clk 0:00:37.4]} 30. Nf7+ {[%clk 0:00:21.8]}
30... Rxf7 {[%clk 0:00:36.9]} 31. Qg8# {[%clk 0:00:21]} 1-0

[Event "*** Titled Tuesday Blitz"]
[Site "Chess.com"]
[Date "2020.11.10"]
[Round "3"]
[White "AliKa2810"]
[Black "PSvidler"]
[Result "0-1"]
[WhiteElo "2572"]
[BlackElo "2877"]
[TimeControl "180+1"]
[EndTime "10:31:02 PST"]
[Termination "PSvidler won on time"]

1. d4 {[%clk 0:03:00.9]} 1... Nf6 {[%clk 0:02:58.6]} 2. c4 {[%clk 0:03:00.9]}
2... g6 {[%clk 0:02:58.2]} 3. Nf3 {[%clk 0:03:00.6]} 3... Bg7 {[%clk 0:02:58.1]}
4. e3 {[%clk 0:03:00.6]} 4... O-O {[%clk 0:02:57.8]} 5. Be2 {[%clk 0:03:01]}
5... b6 {[%clk 0:02:52.3]} 6. O-O {[%clk 0:02:56.8]} 6... Bb7 {[%clk 0:02:52.3]}
7. d5 {[%clk 0:02:43.4]} 7... b5 {[%clk 0:02:26.9]} 8. Nc3 {[%clk 0:02:40.7]}
8... bxc4 {[%clk 0:02:26.8]} 9. Bxc4 {[%clk 0:02:40.4]} 9... d6 {[%clk
0:02:20.9]} 10. e4 {[%clk 0:02:38.6]} 10... c6 {[%clk 0:02:21.1]} 11. Be3 {[%clk
0:02:27.7]} 11... Nbd7 {[%clk 0:02:18.9]} 12. Rc1 {[%clk 0:02:25]} 12... cxd5
{[%clk 0:02:17.7]} 13. exd5 {[%clk 0:02:21.9]} 13... Rc8 {[%clk 0:02:04.3]} 14.
Qb3 {[%clk 0:02:03.1]} 14... Nb6 {[%clk 0:02:00.2]} 15. Bxb6 {[%clk 0:01:58.7]}
15... Qxb6 {[%clk 0:01:58.6]} 16. Rfe1 {[%clk 0:01:44]} 16... Bh6 {[%clk
0:01:42.6]} 17. Rc2 {[%clk 0:01:40.2]} 17... Qxb3 {[%clk 0:01:31.4]} 18. axb3
{[%clk 0:01:32.4]} 18... Nxd5 {[%clk 0:01:10.7]} 19. Nxd5 {[%clk 0:01:22.9]}
19... Bxd5 {[%clk 0:01:10.5]} 20. Rxe7 {[%clk 0:01:23]} 20... a5 {[%clk
0:01:09.3]} 21. h4 {[%clk 0:01:10.4]} 21... a4 {[%clk 0:01:07.6]} 22. Rc3 {[%clk
0:00:31.2]} 22... Bxc4 {[%clk 0:01:05.7]} 23. bxc4 {[%clk 0:00:26.5]} 23... Bg7
{[%clk 0:01:05.6]} 24. Rc2 {[%clk 0:00:25.3]} 24... Rb8 {[%clk 0:00:54.1]} 25.
Ra7 {[%clk 0:00:25.1]} 25... Rb4 {[%clk 0:00:54]} 26. Ng5 {[%clk 0:00:20.3]}
26... Bxb2 {[%clk 0:00:51.2]} 27. Ne4 {[%clk 0:00:18.2]} 27... a3 {[%clk
0:00:40.1]} 28. Nxd6 {[%clk 0:00:17.4]} 28... Be5 {[%clk 0:00:39.6]} 0-1

[Event "*** Titled Tuesday Blitz"]
[Site "Chess.com"]
[Date "2020.11.10"]
[Round "3"]
[White "Xtrmntr78"]
[Black "Ural_bogatyr"]
[Result "0-1"]
[WhiteElo "2554"]
[BlackElo "2382"]
[TimeControl "180+1"]
[EndTime "10:31:04 PST"]
[Termination "Ural_bogatyr won on time"]

1. c4 {[%clk 0:02:58.1]} 1... Nf6 {[%clk 0:02:59.5]} 2. Nc3 {[%clk 0:02:57.9]}
2... e6 {[%clk 0:02:59.5]} 3. e4 {[%clk 0:02:58.1]} 3... d5 {[%clk 0:02:58.6]}
4. cxd5 {[%clk 0:02:57.9]} 4... exd5 {[%clk 0:02:58.2]} 5. e5 {[%clk 0:02:58.4]}
5... Ne4 {[%clk 0:02:58.1]} 6. d4 {[%clk 0:02:58.2]} 6... Bb4 {[%clk 0:02:52.4]}
7. Qb3 {[%clk 0:02:57.4]} 7... c5 {[%clk 0:02:48.4]} 8. a3 {[%clk 0:02:52.4]}
8... Ba5 {[%clk 0:02:44.5]} 9. dxc5 {[%clk 0:02:41.1]} 9... Nc6 {[%clk
0:02:34.6]} 10. Bb5 {[%clk 0:02:35.6]} 10... d4 {[%clk 0:02:04.4]} 11. Qa4
{[%clk 0:01:01.6]} 11... Nxc3 {[%clk 0:01:49.1]} 12. Bxc6+ {[%clk 0:00:59.1]}
12... bxc6 {[%clk 0:01:48.8]} 13. Qxc6+ {[%clk 0:00:57.8]} 13... Bd7 {[%clk
0:01:47.7]} 14. Qf3 {[%clk 0:00:57.4]} 14... O-O {[%clk 0:01:10.9]} 15. Bd2
{[%clk 0:00:56.2]} 15... Na4 {[%clk 0:01:05.1]} 16. Bxa5 {[%clk 0:00:37.1]}
16... Qxa5+ {[%clk 0:01:06]} 17. b4 {[%clk 0:00:37.5]} 17... Qb5 {[%clk
0:01:04.6]} 18. Ne2 {[%clk 0:00:28.3]} 18... d3 {[%clk 0:00:58]} 19. Nf4 {[%clk
0:00:11.3]} 19... d2+ {[%clk 0:00:55]} 20. Kxd2 {[%clk 0:00:09.9]} 20... Rad8
{[%clk 0:00:48.5]} 21. Ke1 {[%clk 0:00:08.6]} 21... Qc4 {[%clk 0:00:35.1]} 22.
Rd1 {[%clk 0:00:01.5]} 22... Nb2 {[%clk 0:00:25.1]} 0-1

[Event "*** Titled Tuesday Blitz"]
[Site "Chess.com"]
[Date "2020.11.10"]
[Round "3"]
[White "KyrgyzFighter"]
[Black "beto-betun"]
[Result "1-0"]
[WhiteElo "2355"]
[BlackElo "2186"]
[TimeControl "180+1"]
[EndTime "10:31:05 PST"]
[Termination "KyrgyzFighter won on time"]

1. c4 {[%clk 0:03:00.9]} 1... e5 {[%clk 0:02:58.6]} 2. Nc3 {[%clk 0:03:01]} 2...
Nc6 {[%clk 0:02:58.9]} 3. g3 {[%clk 0:03:01.1]} 3... f5 {[%clk 0:02:58.6]} 4.
Bg2 {[%clk 0:03:01.3]} 4... Nf6 {[%clk 0:02:58.9]} 5. e3 {[%clk 0:03:01.7]} 5...
d5 {[%clk 0:02:44.3]} 6. Nxd5 {[%clk 0:03:00.5]} 6... e4 {[%clk 0:02:34.9]} 7.
d3 {[%clk 0:02:55.8]} 7... Nxd5 {[%clk 0:02:33.6]} 8. cxd5 {[%clk 0:02:53.8]}
8... Qxd5 {[%clk 0:02:32.5]} 9. dxe4 {[%clk 0:02:54.3]} 9... Qxd1+ {[%clk
0:02:32.5]} 10. Kxd1 {[%clk 0:02:55.2]} 10... fxe4 {[%clk 0:02:31.9]} 11. Bxe4
{[%clk 0:02:55.8]} 11... Bg4+ {[%clk 0:02:31.3]} 12. Kc2 {[%clk 0:02:52.1]}
12... O-O-O {[%clk 0:02:27.9]} 13. Bd2 {[%clk 0:02:51.1]} 13... Bb4 {[%clk
0:02:21.6]} 14. Bxb4 {[%clk 0:02:47.4]} 14... Nxb4+ {[%clk 0:02:22.5]} 15. Kc3
{[%clk 0:02:48]} 15... Nd5+ {[%clk 0:02:17.4]} 16. Bxd5 {[%clk 0:02:40.1]} 16...
Rxd5 {[%clk 0:02:18.3]} 17. f3 {[%clk 0:02:33.5]} 17... Bh5 {[%clk 0:02:06.7]}
18. g4 {[%clk 0:02:32.5]} 18... Bg6 {[%clk 0:01:56.4]} 19. e4 {[%clk 0:02:32.3]}
19... Rd6 {[%clk 0:01:47.7]} 20. Ne2 {[%clk 0:02:31.3]} 20... Rc6+ {[%clk
0:01:40.2]} 21. Kd2 {[%clk 0:02:08.9]} 21... Rd8+ {[%clk 0:01:39.1]} 22. Ke3
{[%clk 0:02:09.1]} 22... Rc2 {[%clk 0:01:33.1]} 23. b3 {[%clk 0:02:09.3]} 23...
Rdd2 {[%clk 0:01:25]} 24. Nd4 {[%clk 0:02:04.4]} 24... Rxa2 {[%clk 0:01:23]} 25.
Rxa2 {[%clk 0:02:01.5]} 25... Rxa2 {[%clk 0:01:23.9]} 26. f4 {[%clk 0:02:01.6]}
26... Bf7 {[%clk 0:01:20.2]} 27. e5 {[%clk 0:02:00.7]} 27... Ra3 {[%clk
0:00:45.1]} 28. e6 {[%clk 0:01:58.4]} 28... Be8 {[%clk 0:00:38.9]} 29. Rc1
{[%clk 0:01:54.9]} 29... Kd8 {[%clk 0:00:33.2]} 30. Rc3 {[%clk 0:01:50.7]} 30...
c6 {[%clk 0:00:26.8]} 31. Ke4 {[%clk 0:01:49.3]} 31... Ke7 {[%clk 0:00:23.3]}
32. Ke5 {[%clk 0:01:48.8]} 32... g6 {[%clk 0:00:23.8]} 33. f5 {[%clk 0:01:48.7]}
33... gxf5 {[%clk 0:00:23.4]} 34. gxf5 {[%clk 0:01:48.9]} 34... Ra5+ {[%clk
0:00:23]} 35. Kf4 {[%clk 0:01:48.5]} 35... Kf6 {[%clk 0:00:21.6]} 36. Rh3 {[%clk
0:01:48.1]} 36... h5 {[%clk 0:00:20.2]} 37. Rg3 {[%clk 0:01:47.7]} 37... c5
{[%clk 0:00:16.3]} 38. Nf3 {[%clk 0:01:28.6]} 38... c4 {[%clk 0:00:15.9]} 39.
Nd4 {[%clk 0:01:27.4]} 39... cxb3 {[%clk 0:00:12.4]} 40. Rxb3 {[%clk 0:01:28.3]}
40... b6 {[%clk 0:00:10.2]} 41. Rc3 {[%clk 0:01:26.8]} 41... Ra4 {[%clk
0:00:07.8]} 42. Ke3 {[%clk 0:01:26.3]} 42... Ke5 {[%clk 0:00:03]} 43. e7 {[%clk
0:01:12.7]} 43... Rxd4 {[%clk 0:00:01.9]} 44. Rc8 {[%clk 0:01:13.3]} 1-0

[Event "*** Titled Tuesday Blitz"]
[Site "Chess.com"]
[Date "2020.11.10"]
[Round "3"]
[White "Azerichess"]
[Black "giantslayer83"]
[Result "1-0"]
[WhiteElo "2971"]
[BlackElo "2703"]
[TimeControl "180+1"]
[EndTime "10:31:06 PST"]
[Termination "Azerichess won by resignation"]

1. d4 {[%clk 0:03:00.9]} 1... Nf6 {[%clk 0:02:59.8]} 2. c4 {[%clk 0:03:01.4]}
2... e6 {[%clk 0:03:00.2]} 3. Nc3 {[%clk 0:03:02]} 3... Bb4 {[%clk 0:03:00]} 4.
Qc2 {[%clk 0:03:02.6]} 4... d5 {[%clk 0:02:57.9]} 5. cxd5 {[%clk 0:03:02]} 5...
Qxd5 {[%clk 0:02:57]} 6. Nf3 {[%clk 0:03:02.6]} 6... Qf5 {[%clk 0:02:56.7]} 7.
Qb3 {[%clk 0:03:03.2]} 7... Nc6 {[%clk 0:02:42]} 8. e3 {[%clk 0:03:03.6]} 8...
O-O {[%clk 0:02:41.3]} 9. Be2 {[%clk 0:03:03.4]} 9... Qd5 {[%clk 0:02:21.9]} 10.
Qc2 {[%clk 0:02:53.4]} 10... Qa5 {[%clk 0:01:57.8]} 11. O-O {[%clk 0:02:51.1]}
11... e5 {[%clk 0:01:55.9]} 12. a3 {[%clk 0:02:47]} 12... Bxc3 {[%clk
0:01:51.5]} 13. bxc3 {[%clk 0:02:41]} 13... e4 {[%clk 0:01:47.9]} 14. Nd2 {[%clk
0:02:40.9]} 14... Re8 {[%clk 0:01:48.2]} 15. Rb1 {[%clk 0:02:37]} 15... Qg5
{[%clk 0:01:37]} 16. Re1 {[%clk 0:02:31.3]} 16... b6 {[%clk 0:01:35.6]} 17. Qa4
{[%clk 0:02:14.8]} 17... Bd7 {[%clk 0:01:34.4]} 18. Bb5 {[%clk 0:02:14.3]} 18...
a6 {[%clk 0:01:10.7]} 19. Bxc6 {[%clk 0:02:10.4]} 19... b5 {[%clk 0:01:10.9]}
20. Qa5 {[%clk 0:01:55.6]} 20... Bxc6 {[%clk 0:01:10.1]} 21. Qxc7 {[%clk
0:01:56.2]} 21... Rac8 {[%clk 0:00:54.4]} 22. Qg3 {[%clk 0:01:55.3]} 22... Qxg3
{[%clk 0:00:40.5]} 23. hxg3 {[%clk 0:01:56]} 23... Bd5 {[%clk 0:00:41.4]} 24.
Bb2 {[%clk 0:01:56.3]} 24... Nd7 {[%clk 0:00:32.2]} 25. a4 {[%clk 0:01:48.2]}
25... bxa4 {[%clk 0:00:30.5]} 26. Ba1 {[%clk 0:01:48.9]} 26... Re6 {[%clk
0:00:28]} 27. Rb4 {[%clk 0:01:47.7]} 27... Nb6 {[%clk 0:00:24.2]} 28. Reb1
{[%clk 0:01:48.1]} 28... Bb3 {[%clk 0:00:10.7]} 29. Nxb3 {[%clk 0:01:44.9]}
29... axb3 {[%clk 0:00:11.6]} 30. R1xb3 {[%clk 0:01:44.8]} 30... Nd5 {[%clk
0:00:12.5]} 31. Rc4 {[%clk 0:01:41.7]} 31... Ree8 {[%clk 0:00:08.9]} 32. Rxc8
{[%clk 0:01:41.3]} 32... Rxc8 {[%clk 0:00:09.8]} 33. Kf1 {[%clk 0:01:41.8]}
33... h5 {[%clk 0:00:09.1]} 34. Ke2 {[%clk 0:01:42.1]} 34... f6 {[%clk
0:00:05.9]} 35. Kd2 {[%clk 0:01:42.3]} 35... Kf7 {[%clk 0:00:05.3]} 36. Rb7+
{[%clk 0:01:41.3]} 36... Kg6 {[%clk 0:00:04.9]} 37. Kc2 {[%clk 0:01:41.6]} 37...
a5 {[%clk 0:00:02.7]} 38. Kb3 {[%clk 0:01:41.5]} 38... Rc6 {[%clk 0:00:02.6]}
39. Ra7 {[%clk 0:01:39.9]} 39... Rb6+ {[%clk 0:00:02.6]} 40. Kc2 {[%clk
0:01:40.2]} 40... Rc6 {[%clk 0:00:01.8]} 41. Rxa5 {[%clk 0:01:37.7]} 41... Nb4+
{[%clk 0:00:01.9]} 42. Kd2 {[%clk 0:01:38.2]} 42... Nd3 {[%clk 0:00:02.8]} 43.
f3 {[%clk 0:01:38.8]} 43... Nf2 {[%clk 0:00:01.5]} 44. d5 {[%clk 0:01:37.4]}
44... Rb6 {[%clk 0:00:01.1]} 45. c4 {[%clk 0:01:37.4]} 45... Nh1 {[%clk
0:00:01.1]} 46. Bd4 {[%clk 0:01:36.3]} 46... Rb3 {[%clk 0:00:01.6]} 47. d6
{[%clk 0:01:35.2]} 47... Rd3+ {[%clk 0:00:01.2]} 48. Kc2 {[%clk 0:01:35]} 48...
Nxg3 {[%clk 0:00:02.1]} 49. d7 {[%clk 0:01:34.6]} 1-0

[Event "*** Titled Tuesday Blitz"]
[Site "Chess.com"]
[Date "2020.11.10"]
[Round "3"]
[White "albi1999"]
[Black "Sviridov_Valery"]
[Result "0-1"]
[WhiteElo "2545"]
[BlackElo "2787"]
[TimeControl "180+1"]
[EndTime "10:31:06 PST"]
[Termination "Sviridov_Valery won by resignation"]

1. d4 {[%clk 0:02:59.5]} 1... g6 {[%clk 0:02:57.9]} 2. Nf3 {[%clk 0:02:58]} 2...
Bg7 {[%clk 0:02:58.2]} 3. c4 {[%clk 0:02:58.5]} 3... d6 {[%clk 0:02:58.2]} 4.
Nc3 {[%clk 0:02:54.3]} 4... e5 {[%clk 0:02:57.2]} 5. dxe5 {[%clk 0:02:49.6]}
5... dxe5 {[%clk 0:02:58.1]} 6. Qxd8+ {[%clk 0:02:50.3]} 6... Kxd8 {[%clk
0:02:58.7]} 7. Bg5+ {[%clk 0:02:47.4]} 7... f6 {[%clk 0:02:58.8]} 8. O-O-O+
{[%clk 0:02:48.3]} 8... Nd7 {[%clk 0:02:59]} 9. Bd2 {[%clk 0:02:45.7]} 9... c6
{[%clk 0:02:58.4]} 10. b3 {[%clk 0:02:32.7]} 10... Kc7 {[%clk 0:02:56.2]} 11.
Ne4 {[%clk 0:02:30.9]} 11... Nh6 {[%clk 0:02:40.1]} 12. Bb4 {[%clk 0:02:19.2]}
12... b6 {[%clk 0:02:33.9]} 13. e3 {[%clk 0:02:13.5]} 13... f5 {[%clk
0:02:25.3]} 14. Neg5 {[%clk 0:02:09.6]} 14... Nc5 {[%clk 0:02:24.3]} 15. h3
{[%clk 0:01:56.2]} 15... e4 {[%clk 0:02:03.6]} 16. Nd4 {[%clk 0:01:54.1]} 16...
Bf6 {[%clk 0:02:04]} 17. h4 {[%clk 0:01:27.8]} 17... Ng4 {[%clk 0:01:59.2]} 18.
Rd2 {[%clk 0:01:28.2]} 18... h6 {[%clk 0:01:56.5]} 19. Nh3 {[%clk 0:01:10.8]}
19... g5 {[%clk 0:01:50.3]} 20. hxg5 {[%clk 0:00:34.6]} 20... hxg5 {[%clk
0:01:51.2]} 21. Be2 {[%clk 0:00:33.2]} 21... Bd7 {[%clk 0:01:49.2]} 22. Re1
{[%clk 0:00:30.4]} 22... Rad8 {[%clk 0:01:43]} 23. Bf1 {[%clk 0:00:30.1]} 23...
Bc8 {[%clk 0:01:37.6]} 24. Bc3 {[%clk 0:00:28.9]} 24... Rd6 {[%clk 0:01:01.4]}
25. f4 {[%clk 0:00:28.7]} 25... exf3 {[%clk 0:00:55.6]} 26. gxf3 {[%clk
0:00:29]} 26... Ne5 {[%clk 0:00:56]} 27. f4 {[%clk 0:00:29.5]} 27... gxf4 {[%clk
0:00:55.7]} 28. exf4 {[%clk 0:00:26]} 28... Ng4 {[%clk 0:00:55.6]} 29. Ng5
{[%clk 0:00:24.2]} 29... Rhd8 {[%clk 0:00:48.6]} 30. Ne2 {[%clk 0:00:06.3]}
30... Bxc3 {[%clk 0:00:45.8]} 31. Rxd6 {[%clk 0:00:06.3]} 31... Bxe1 {[%clk
0:00:44.7]} 32. Rxd8 {[%clk 0:00:06.8]} 32... Kxd8 {[%clk 0:00:44.5]} 0-1